[Event "European Online Club-ch-G 2021"]
[Site "Online"]
[Date "2021.03.27"]
[Round "7.7"]
[White "Sukandar, Irine Kharisma"]
[Black "Mastrovasilis, Dimitrios"]
[Result "0-1"]
[ECO "B44"]
[WhiteElo "2413"]
[BlackElo "2609"]
[Annotator "ChessBase"]
[PlyCount "120"]
[EventDate "2021.03.27"]
[EventType "team-tourn"]
[EventCountry "NET"]
[SourceTitle "playchess.com"]
[Source "ChessBase"]
[SourceQuality "1"]
[TimeControl "900+5"]

1. e4 {[%emt 0:00:00]} c5 {[%emt 0:00:04]} 2. Nf3 {[%emt 0:00:05]} e6 {[%emt 0:00:04]} 3. d4 {[%emt 0:00:03]} cxd4 {[%emt 0:00:05]} 4. Nxd4 {[%emt 0:00:02]} Nc6 {[%emt 0:00:07]} 5. c4 {[%emt 0:00:20]} Nf6 {[%emt 0:00:03]} 6. Nc3 {[%emt 0:00:02]} Bb4 {[%emt 0:00:04]} 7. Qd3 {[%emt 0:00:54]} d5 {[%emt 0:01:40]} 8. exd5 {[%emt 0:00:25]} exd5 {[%emt 0:00:52]} 9. cxd5 {[%emt 0:07:31]} Nxd5 {[%emt 0:04:28]} 10. Nxc6 {[%emt 0:00:09]} bxc6 {[%emt 0:00:00]} 11. Bd2 {[%emt 0:00:09]} O-O {[%emt 0:00:40]} 12. O-O-O {[%emt 0:00:30]} Nxc3 {[%emt 0:01:55]} 13. Bxc3 {[%emt 0:00:55]} Qg5+ {[%emt 0:00:09]} 14. Qd2 {[%emt 0:00:28]} Qxd2+ {[%emt 0:00:30]} 15. Bxd2 {[%emt 0:00:02]} Bc5 {[%emt 0:00:04]} 16. f3 {[%emt 0:01:43]} Be6 {[%emt 0:00:10]} 17. Kb1 {[%emt 0:00:25]} Rad8 {[%emt 0:01:30]} 18. Ba6 {[%emt 0:00:12]} Rd4 {[%emt 0:01:07]} 19. Be2 {[%emt 0:01:44]} Ra4 {[%emt 0:01:18]} 20. b3 {[%emt 0:00:07]} Bf5+ {[%emt 0:00:03]} 21. Kb2 {[%emt 0:00:09]} Bd4+ {[%emt 0:00:05]} 22. Bc3 {[%emt 0:00:19]} Bxc3+ {[%emt 0:00:04]} 23. Kxc3 {[%emt 0:00:03]} Rxa2 {[%emt 0:00:02]} 24. Rd2 {[%emt 0:00:08]} Ra5 {[%emt 0:01:20]} 25. Bc4 {[%emt 0:00:04]} Re8 {[%emt 0:00:08]} 26. Re1 {[%emt 0:00:11]} Kf8 {[%emt 0:00:10]} 27. Rxe8+ {[%emt 0:00:12]} Kxe8 {[%emt 0:00:00]} 28. Rd6 {[%emt 0:00:02]} Ra2 {[%emt 0:00:15]} 29. g4 {[%emt 0:00:17]} Bd7 {[%emt 0:00:07]} 30. h4 {[%emt 0:00:05]} Ke7 {[%emt 0:00:04]} 31. Rd3 {[%emt 0:00:03]} Be6 {[%emt 0:00:13]} 32. Re3 {[%emt 0:00:06]} Rf2 {[%emt 0:00:07]} 33. Bd3 {[%emt 0:00:06]} h6 {[%emt 0:00:04]} 34. Be4 {[%emt 0:00:03]} Kd6 {[%emt 0:00:02]} 35. Rd3+ {[%emt 0:00:04]} Bd5 {[%emt 0:00:02]} 36. Kd4 {[%emt 0:00:11]} Rb2 {[%emt 0:00:07]} 37. Bxd5 {[%emt 0:00:10]} cxd5 {[%emt 0:00:02]} 38. Rc3 {[%emt 0:00:02]} Rd2+ {[%emt 0:00:07]} 39. Ke3 {[%emt 0:00:01]} Rh2 {[%emt 0:00:14]} 40. h5 {[%emt 0:00:02]} Rb2 {[%emt 0:00:05]} 41. Kd3 {[%emt 0:00:02]} Rb1 {[%emt 0:00:06]} 42. Kc2 {[%emt 0:00:12]} Rf1 {[%emt 0:00:02]} 43. Re3 {[%emt 0:00:02]} g6 {[%emt 0:00:04]} 44. hxg6 {[%emt 0:00:12]} fxg6 {[%emt 0:00:00]} 45. Kd2 {[%emt 0:00:04]} h5 {[%emt 0:00:02]} 46. gxh5 {[%emt 0:00:04]} gxh5 {[%emt 0:00:00]} 47. Ke2 {[%emt 0:00:04]} Rb1 {[%emt 0:00:06]} 48. f4 {[%emt 0:00:03]} Rb2+ {[%emt 0:00:09]} 49. Kf3 {[%emt 0:00:03]} d4 {[%emt 0:00:05]} 50. Rd3 {[%emt 0:00:02]} Kd5 {[%emt 0:00:02]} 51. f5 {[%emt 0:00:15]} h4 {[%emt 0:00:19]} 52. f6 {[%emt 0:00:06]} Ke6 {[%emt 0:00:08]} 53. Rxd4 {[%emt 0:00:02]} Rxb3+ {[%emt 0:00:03]} 54. Kg2 {[%emt 0:00:05]} Kxf6 {[%emt 0:00:01]} 55. Ra4 {[%emt 0:00:03]} Rg3+ {[%emt 0:00:05]} 56. Kh2 {[%emt 0:00:02]} Rg7 {[%emt 0:00:02]} 57. Rxh4 {[%emt 0:00:15]} Ke5 {[%emt 0:00:03]} 58. Ra4 {[%emt 0:00:03]} Kd5 {[%emt 0:00:02]} 59. Ra6 {[%emt 0:00:07]} Kc5 {[%emt 0:00:02]} 60. Ra3 {[%emt 0:00:04]} Kb4 {[%emt 0:00:04]} 0-1

[Event "European Online Club-ch-G 2021"]
[Site "Online"]
[Date "2021.03.27"]
[Round "7.8"]
[White "Tazbir, Marcin"]
[Black "Derakhshani, Borna"]
[Result "1-0"]
[ECO "A11"]
[WhiteElo "2513"]
[BlackElo "2373"]
[Annotator "ChessBase"]
[PlyCount "93"]
[EventDate "2021.03.27"]
[EventType "team-tourn"]
[EventCountry "NET"]
[SourceTitle "playchess.com"]
[Source "ChessBase"]
[SourceQuality "1"]
[TimeControl "900+5"]

1. c4 {[%emt 0:00:00]} c6 {[%emt 0:00:04]} 2. Nf3 {[%emt 0:00:06]} d5 {[%emt 0:00:01]} 3. e3 {[%emt 0:00:02]} Nf6 {[%emt 0:00:02]} 4. Qc2 {[%emt 0:00:03]} e6 {[%emt 0:00:02]} 5. b3 {[%emt 0:00:03]} Be7 {[%emt 0:00:12]} 6. Bb2 {[%emt 0:00:02]} Nbd7 {[%emt 0:00:03]} 7. g4 {[%emt 0:00:39]} h6 {[%emt 0:02:18]} 8. Rg1 {[%emt 0:00:04]} a5 {[%emt 0:01:52]} 9. a3 {[%emt 0:00:06]} a4 {[%emt 0:00:04]} 10. b4 {[%emt 0:00:05]} dxc4 {[%emt 0:00:18]} 11. Bxc4 {[%emt 0:00:04]} b5 {[%emt 0:00:13]} 12. Be2 {[%emt 0:00:03]} Bb7 {[%emt 0:00:02]} 13. Nc3 {[%emt 0:00:21]} Qb6 {[%emt 0:00:12]} 14. d4 {[%emt 0:00:15]} Rc8 {[%emt 0:00:27]} 15. h4 {[%emt 0:00:13]} Nd5 {[%emt 0:01:39]} 16. Ne4 {[%emt 0:00:12]} Qc7 {[%emt 0:00:33]} 17. g5 {[%emt 0:01:08]} hxg5 {[%emt 0:00:28]} 18. hxg5 {[%emt 0:02:27]} g6 {[%emt 0:01:12]} 19. Nc5 {[%emt 0:00:25]} Bf8 {[%emt 0:01:44]} 20. e4 {[%emt 0:01:35]} Nf4 {[%emt 0:00:16]} 21. d5 {[%emt 0:01:06]} Rh3 {[%emt 0:00:06]} 22. Nxd7 {[%emt 0:01:15]} Qxd7 {[%emt 0:00:03]} 23. Ne5 {[%emt 0:00:04]} Qc7 {[%emt 0:01:26]} 24. dxe6 {[%emt 0:01:39]} Nxe6 {[%emt 0:00:28]} 25. Bg4 {[%emt 0:01:10]} Rb3 {[%emt 0:00:11]} 26. Nxg6 {[%emt 0:00:33]} c5 {[%emt 0:00:03]} 27. Nxf8 {[%emt 0:00:17]} Kxf8 {[%emt 0:00:02]} 28. Bxe6 {[%emt 0:01:11]} fxe6 {[%emt 0:00:03]} 29. g6 {[%emt 0:01:26]} Qh2 {[%emt 0:00:42]} 30. g7+ {[%emt 0:00:34]} Kg8 {[%emt 0:00:01]} 31. Kf1 {[%emt 0:00:15]} cxb4 {[%emt 0:00:26]} 32. Rd1 {[%emt 0:00:07]} Qh3+ {[%emt 0:00:39]} 33. Ke1 {[%emt 0:00:03]} e5 {[%emt 0:00:04]} 34. Qd2 {[%emt 0:00:06]} Re8 {[%emt 0:00:17]} 35. axb4 {[%emt 0:00:03]} Bxe4 {[%emt 0:00:12]} 36. Qe2 {[%emt 0:00:05]} Qh2 {[%emt 0:00:19]} 37. Rf1 {[%emt 0:00:07]} Qf4 {[%emt 0:00:39]} 38. Qxb5 {[%emt 0:00:05]} Re7 {[%emt 0:00:02]} 39. Qc4+ {[%emt 0:00:02]} Qf7 {[%emt 0:00:02]} 40. Qxe4 {[%emt 0:00:03]} Rxb2 {[%emt 0:00:05]} 41. Rd8+ {[%emt 0:00:02]} Kxg7 {[%emt 0:00:00]} 42. Rg1+ {[%emt 0:00:02]} Kf6 {[%emt 0:00:01]} 43. Qh4+ {[%emt 0:00:04]} Ke6 {[%emt 0:00:01]} 44. Qh6+ {[%emt 0:00:03]} Kf5 {[%emt 0:00:08]} 45. Rg5+ {[%emt 0:00:06]} Ke4 {[%emt 0:00:01]} 46. Qh4+ {[%emt 0:00:10]} Qf4 {[%emt 0:00:02]} 47. Qh1+ {[%emt 0:00:01]} 1-0

[Event "European Online Club-ch-G 2021"]
[Site "Online"]
[Date "2021.03.27"]
[Round "7.9"]
[White "Borhy, Marcell"]
[Black "Jobava, Baadur"]
[Result "1-0"]
[ECO "D16"]
[WhiteElo "2392"]
[BlackElo "2603"]
[Annotator "ChessBase"]
[PlyCount "61"]
[EventDate "2021.03.27"]
[EventType "team-tourn"]
[EventCountry "NET"]
[SourceTitle "playchess.com"]
[Source "ChessBase"]
[SourceQuality "1"]
[TimeControl "900+5"]

1. Nf3 {[%emt 0:00:00]} d5 {[%emt 0:00:05]} 2. d4 {[%emt 0:00:02]} Nf6 {[%emt 0:00:04]} 3. c4 {[%emt 0:00:03]} c6 {[%emt 0:00:01]} 4. Nc3 {[%emt 0:00:02]} dxc4 {[%emt 0:00:02]} 5. a4 {[%emt 0:00:08]} a5 {[%emt 0:00:01]} 6. e4 {[%emt 0:00:08]} Bg4 {[%emt 0:00:02]} 7. Bxc4 {[%emt 0:00:02]} e6 {[%emt 0:00:01]} 8. Be3 {[%emt 0:00:02]} Bb4 {[%emt 0:00:02]} 9. Qc2 {[%emt 0:00:11]} Nbd7 {[%emt 0:00:06]} 10. O-O {[%emt 0:00:14]} O-O {[%emt 0:00:20]} 11. Be2 {[%emt 0:00:05]} Bh5 {[%emt 0:00:12]} 12. Rfd1 {[%emt 0:00:51]} h6 {[%emt 0:01:15]} 13. d5 {[%emt 0:02:43]} exd5 {[%emt 0:00:29]} 14. exd5 {[%emt 0:00:03]} Bg6 {[%emt 0:07:26]} 15. Qb3 {[%emt 0:01:14]} Ng4 {[%emt 0:01:52]} 16. dxc6 {[%emt 0:01:07]} bxc6 {[%emt 0:00:00]} 17. Bf4 {[%emt 0:00:12]} Qb6 {[%emt 0:02:01]} 18. Bg3 {[%emt 0:00:41]} Rad8 {[%emt 0:00:09]} 19. Qc4 {[%emt 0:00:45]} Ngf6 {[%emt 0:00:05]} 20. Nd4 {[%emt 0:00:21]} Rc8 {[%emt 0:00:24]} 21. Bf3 {[%emt 0:00:13]} Rfe8 {[%emt 0:00:15]} 22. Re1 {[%emt 0:00:59]} Rxe1+ {[%emt 0:00:15]} 23. Rxe1 {[%emt 0:00:03]} Nc5 {[%emt 0:00:00]} 24. Rd1 {[%emt 0:00:36]} Nce4 {[%emt 0:01:19]} 25. Bxe4 {[%emt 0:01:49]} Nxe4 {[%emt 0:00:00]} 26. Nxe4 {[%emt 0:00:03]} Bxe4 {[%emt 0:00:02]} 27. Nc2 {[%emt 0:00:59]} Rd8 {[%emt 0:00:31]} 28. Rxd8+ {[%emt 0:01:02]} Qxd8 {[%emt 0:00:00]} 29. Nxb4 {[%emt 0:00:29]} axb4 {[%emt 0:00:03]} 30. f3 {[%emt 0:00:26]} Qd1+ {[%emt 0:00:22]} 31. Qf1 {[%emt 0:00:03]} 1-0

[Event "European Online Club-ch-G 2021"]
[Site "Online"]
[Date "2021.03.27"]
[Round "7.10"]
[White "Dreev, Aleksey"]
[Black "Persanyi, Barnabas"]
[Result "1/2-1/2"]
[ECO "E12"]
[WhiteElo "2647"]
[BlackElo "2364"]
[Annotator "ChessBase"]
[PlyCount "52"]
[EventDate "2021.03.27"]
[EventType "team-tourn"]
[EventCountry "NET"]
[SourceTitle "playchess.com"]
[Source "ChessBase"]
[SourceQuality "1"]
[TimeControl "900+5"]

1. d4 {[%emt 0:00:00]} Nf6 {[%emt 0:00:03]} 2. Nf3 {[%emt 0:00:11]} b6 {[%emt 0:00:04]} 3. c4 {[%emt 0:00:07]} e6 {[%emt 0:00:08]} 4. a3 {[%emt 0:00:06]} Bb7 {[%emt 0:00:04]} 5. Nc3 {[%emt 0:00:02]} Ne4 {[%emt 0:00:13]} 6. Nxe4 {[%emt 0:00:13]} Bxe4 {[%emt 0:00:04]} 7. Nd2 {[%emt 0:00:19]} Bb7 {[%emt 0:00:41]} 8. e4 {[%emt 0:00:03]} d6 {[%emt 0:01:05]} 9. Bd3 {[%emt 0:00:09]} Nd7 {[%emt 0:00:11]} 10. O-O {[%emt 0:00:08]} g6 {[%emt 0:00:21]} 11. Nf3 {[%emt 0:00:07]} Bg7 {[%emt 0:00:03]} 12. Bg5 {[%emt 0:00:58]} Qc8 {[%emt 0:00:46]} 13. Re1 {[%emt 0:00:42]} O-O {[%emt 0:00:10]} 14. Qd2 {[%emt 0:00:03]} e5 {[%emt 0:00:38]} 15. Bc2 {[%emt 0:01:05]} exd4 {[%emt 0:00:42]} 16. Nxd4 {[%emt 0:00:05]} Ne5 {[%emt 0:00:44]} 17. b3 {[%emt 0:00:55]} Nc6 {[%emt 0:02:18]} 18. Nxc6 {[%emt 0:00:03]} Bxc6 {[%emt 0:00:03]} 19. Rad1 {[%emt 0:00:03]} a5 {[%emt 0:00:08]} 20. a4 {[%emt 0:03:01]} Re8 {[%emt 0:00:34]} 21. h3 {[%emt 0:00:25]} Qe6 {[%emt 0:00:57]} 22. f4 {[%emt 0:00:43]} Bf6 {[%emt 0:00:27]} 23. Bh6 {[%emt 0:01:30]} Bg7 {[%emt 0:00:56]} 24. Bg5 {[%emt 0:00:34]} Bf6 {[%emt 0:00:06]} 25. Bh6 {[%emt 0:00:33]} Bg7 {[%emt 0:00:07]} 26. Bg5 {[%emt 0:00:06]} Bf6 {[%emt 0:00:03]} 1/2-1/2

[Event "European Online Club-ch-G 2021"]
[Site "Online"]
[Date "2021.03.27"]
[Round "7.11"]
[White "Karacsonyi, Gellert"]
[Black "Piorun, Kacper"]
[Result "0-1"]
[ECO "B88"]
[WhiteElo "2321"]
[BlackElo "2615"]
[Annotator "ChessBase"]
[PlyCount "148"]
[EventDate "2021.03.27"]
[EventType "team-tourn"]
[EventCountry "NET"]
[SourceTitle "playchess.com"]
[Source "ChessBase"]
[SourceQuality "1"]
[TimeControl "900+5"]

1. e4 {[%emt 0:00:00]} c5 {[%emt 0:00:03]} 2. Nf3 {[%emt 0:00:02]} d6 {[%emt 0:00:01]} 3. d4 {[%emt 0:00:01]} cxd4 {[%emt 0:00:02]} 4. Nxd4 {[%emt 0:00:00]} Nf6 {[%emt 0:00:01]} 5. Nc3 {[%emt 0:00:02]} a6 {[%emt 0:00:02]} 6. Bc4 {[%emt 0:00:04]} e6 {[%emt 0:00:03]} 7. O-O {[%emt 0:00:03]} Be7 {[%emt 0:00:10]} 8. Bb3 {[%emt 0:00:36]} Nc6 {[%emt 0:00:21]} 9. Be3 {[%emt 0:00:34]} O-O {[%emt 0:00:07]} 10. f4 {[%emt 0:00:13]} Na5 {[%emt 0:00:20]} 11. Qf3 {[%emt 0:00:35]} Qc7 {[%emt 0:00:22]} 12. g4 {[%emt 0:01:44]} Nxb3 {[%emt 0:01:32]} 13. axb3 {[%emt 0:00:03]} Re8 {[%emt 0:00:06]} 14. f5 {[%emt 0:02:41]} exf5 {[%emt 0:02:51]} 15. Nxf5 {[%emt 0:00:33]} Be6 {[%emt 0:00:21]} 16. Bd4 {[%emt 0:02:12]} Bxf5 {[%emt 0:01:25]} 17. gxf5 {[%emt 0:00:46]} d5 {[%emt 0:00:28]} 18. e5 {[%emt 0:00:58]} Bc5 {[%emt 0:00:04]} 19. exf6 {[%emt 0:00:34]} Bxd4+ {[%emt 0:00:05]} 20. Kh1 {[%emt 0:00:02]} Bxf6 {[%emt 0:01:00]} 21. Nxd5 {[%emt 0:00:02]} Qxc2 {[%emt 0:00:13]} 22. Nxf6+ {[%emt 0:00:48]} gxf6 {[%emt 0:00:04]} 23. Rg1+ {[%emt 0:00:04]} Kf8 {[%emt 0:01:17]} 24. Rg2 {[%emt 0:01:12]} Qe4 {[%emt 0:00:34]} 25. Qc3 {[%emt 0:00:44]} Re5 {[%emt 0:00:37]} 26. Rc1 {[%emt 0:00:38]} Rd8 {[%emt 0:00:34]} 27. h3 {[%emt 0:01:15]} Ke7 {[%emt 0:02:09]} 28. Kh2 {[%emt 0:00:17]} Rd7 {[%emt 0:00:25]} 29. Rf2 {[%emt 0:00:22]} a5 {[%emt 0:00:40]} 30. Rcc2 {[%emt 0:00:05]} Qd4 {[%emt 0:00:57]} 31. Qxd4 {[%emt 0:00:14]} Rxd4 {[%emt 0:00:02]} 32. Rc7+ {[%emt 0:00:01]} Rd7 {[%emt 0:00:01]} 33. Rc3 {[%emt 0:00:01]} h5 {[%emt 0:00:28]} 34. Kg3 {[%emt 0:00:02]} Rd4 {[%emt 0:00:08]} 35. Rc7+ {[%emt 0:00:04]} Kf8 {[%emt 0:00:01]} 36. Rxb7 {[%emt 0:00:09]} h4+ {[%emt 0:00:06]} 37. Kh2 {[%emt 0:00:05]} Re3 {[%emt 0:00:06]} 38. Rb8+ {[%emt 0:00:02]} Ke7 {[%emt 0:00:11]} 39. Rb7+ {[%emt 0:00:02]} Ke8 {[%emt 0:00:10]} 40. Rb8+ {[%emt 0:00:02]} Kd7 {[%emt 0:00:04]} 41. Rb7+ {[%emt 0:00:03]} Ke8 {[%emt 0:00:07]} 42. Rb8+ {[%emt 0:00:01]} Ke7 {[%emt 0:00:01]} 43. Rb7+ {[%emt 0:00:02]} Rd7 {[%emt 0:00:01]} 44. Rxd7+ {[%emt 0:00:28]} Kxd7 {[%emt 0:00:02]} 45. Rf4 {[%emt 0:00:11]} Re2+ {[%emt 0:00:11]} 46. Kg1 {[%emt 0:00:02]} Rxb2 {[%emt 0:00:01]} 47. Rxh4 {[%emt 0:00:06]} Rxb3 {[%emt 0:00:02]} 48. Rd4+ {[%emt 0:00:05]} Ke7 {[%emt 0:00:03]} 49. Kg2 {[%emt 0:00:07]} Rb5 {[%emt 0:00:07]} 50. Rf4 {[%emt 0:00:04]} Rb4 {[%emt 0:00:09]} 51. Rf1 {[%emt 0:00:07]} a4 {[%emt 0:00:01]} 52. Kg3 {[%emt 0:00:06]} a3 {[%emt 0:00:03]} 53. h4 {[%emt 0:00:04]} a2 {[%emt 0:00:03]} 54. Ra1 {[%emt 0:00:02]} Ra4 {[%emt 0:00:01]} 55. Kh3 {[%emt 0:00:05]} Kf8 {[%emt 0:00:07]} 56. Kg3 {[%emt 0:00:04]} Kg7 {[%emt 0:00:02]} 57. Kf3 {[%emt 0:00:08]} Kh6 {[%emt 0:00:03]} 58. Ke3 {[%emt 0:00:05]} Kh5 {[%emt 0:00:01]} 59. Kd3 {[%emt 0:00:02]} Kxh4 {[%emt 0:00:03]} 60. Kc3 {[%emt 0:00:01]} Kh5 {[%emt 0:00:05]} 61. Kb2 {[%emt 0:00:13]} Kg5 {[%emt 0:00:02]} 62. Rg1+ {[%emt 0:00:04]} Kxf5 {[%emt 0:00:02]} 63. Ka1 {[%emt 0:00:02]} Ke5 {[%emt 0:00:06]} 64. Re1+ {[%emt 0:00:03]} Re4 {[%emt 0:00:03]} 65. Rf1 {[%emt 0:00:04]} f5 {[%emt 0:00:01]} 66. Kxa2 {[%emt 0:00:03]} f4 {[%emt 0:00:02]} 67. Kb2 {[%emt 0:00:01]} Rc4 {[%emt 0:00:11]} 68. Kb3 {[%emt 0:00:03]} Rc8 {[%emt 0:00:02]} 69. Kb4 {[%emt 0:00:04]} Ke4 {[%emt 0:00:03]} 70. Re1+ {[%emt 0:00:02]} Kd3 {[%emt 0:00:04]} 71. Re5 {[%emt 0:00:04]} f3 {[%emt 0:00:02]} 72. Rf5 {[%emt 0:00:02]} Ke2 {[%emt 0:00:02]} 73. Rxf7 {[%emt 0:00:02]} f2 {[%emt 0:00:01]} 74. Re7+ {[%emt 0:00:01]} Kf1 {[%emt 0:00:01]} 0-1

[Event "European Online Club-ch-G 2021"]
[Site "Online"]
[Date "2021.03.27"]
[Round "7.12"]
[White "Flom, Gabriel"]
[Black "Juhasz, Agoston"]
[Result "1-0"]
[ECO "A82"]
[WhiteElo "2474"]
[BlackElo "2356"]
[Annotator "ChessBase"]
[PlyCount "95"]
[EventDate "2021.03.27"]
[EventType "team-tourn"]
[EventCountry "NET"]
[SourceTitle "playchess.com"]
[Source "ChessBase"]
[SourceQuality "1"]
[TimeControl "900+5"]

1. d4 {[%emt 0:00:00]} f5 {[%emt 0:00:03]} 2. e4 {[%emt 0:00:04]} fxe4 {[%emt 0:00:03]} 3. Nc3 {[%emt 0:00:01]} Nf6 {[%emt 0:00:08]} 4. Bg5 {[%emt 0:00:02]} d5 {[%emt 0:01:07]} 5. f3 {[%emt 0:00:14]} Bf5 {[%emt 0:01:01]} 6. fxe4 {[%emt 0:00:03]} Nxe4 {[%emt 0:00:44]} 7. Nxe4 {[%emt 0:00:03]} Bxe4 {[%emt 0:00:52]} 8. Nf3 {[%emt 0:00:02]} Nc6 {[%emt 0:00:37]} 9. Bb5 {[%emt 0:00:02]} Qd6 {[%emt 0:00:28]} 10. O-O {[%emt 0:00:03]} O-O-O {[%emt 0:02:28]} 11. Bxc6 {[%emt 0:00:03]} Bxf3 {[%emt 0:01:04]} 12. Bxb7+ {[%emt 0:00:13]} Kxb7 {[%emt 0:00:00]} 13. Rxf3 {[%emt 0:00:07]} Qg6 {[%emt 0:01:11]} 14. Rb3+ {[%emt 0:00:21]} Ka8 {[%emt 0:00:09]} 15. Bf4 {[%emt 0:00:02]} e5 {[%emt 0:00:41]} 16. Bxe5 {[%emt 0:00:07]} Bd6 {[%emt 0:00:26]} 17. Rg3 {[%emt 0:00:14]} Qf5 {[%emt 0:00:34]} 18. Bxd6 {[%emt 0:00:08]} Rxd6 {[%emt 0:00:04]} 19. Rxg7 {[%emt 0:00:23]} Rf8 {[%emt 0:01:03]} 20. Qf1 {[%emt 0:00:23]} Qc8 {[%emt 0:01:55]} 21. Rf7 {[%emt 0:00:15]} Rxf7 {[%emt 0:00:54]} 22. Qxf7 {[%emt 0:00:04]} Qg4 {[%emt 0:00:05]} 23. c3 {[%emt 0:00:52]} Rd7 {[%emt 0:00:38]} 24. Qf8+ {[%emt 0:00:08]} Kb7 {[%emt 0:00:03]} 25. Qb4+ {[%emt 0:00:03]} Kc8 {[%emt 0:00:30]} 26. Rf1 {[%emt 0:00:17]} Qe2 {[%emt 0:00:06]} 27. Qf8+ {[%emt 0:00:12]} Kb7 {[%emt 0:00:06]} 28. Qf2 {[%emt 0:00:04]} Qa6 {[%emt 0:00:05]} 29. a3 {[%emt 0:00:10]} Re7 {[%emt 0:00:09]} 30. Qf3 {[%emt 0:00:35]} Qc4 {[%emt 0:00:08]} 31. h3 {[%emt 0:00:03]} Re2 {[%emt 0:00:02]} 32. b3 {[%emt 0:00:03]} Qa6 {[%emt 0:00:11]} 33. Qxd5+ {[%emt 0:00:02]} Qc6 {[%emt 0:00:04]} 34. Qxc6+ {[%emt 0:00:07]} Kxc6 {[%emt 0:00:00]} 35. Rf6+ {[%emt 0:00:05]} Kd5 {[%emt 0:00:03]} 36. Rf5+ {[%emt 0:00:13]} Kd6 {[%emt 0:00:05]} 37. Rh5 {[%emt 0:00:14]} Re3 {[%emt 0:00:04]} 38. Rh6+ {[%emt 0:00:45]} Kd5 {[%emt 0:00:05]} 39. c4+ {[%emt 0:00:01]} Kxd4 {[%emt 0:00:04]} 40. Rxh7 {[%emt 0:00:01]} c5 {[%emt 0:00:07]} 41. Rb7 {[%emt 0:00:02]} a5 {[%emt 0:00:05]} 42. a4 {[%emt 0:00:02]} Kd3 {[%emt 0:00:09]} 43. h4 {[%emt 0:00:05]} Ke2 {[%emt 0:00:05]} 44. Kh2 {[%emt 0:00:04]} Re4 {[%emt 0:00:09]} 45. g3 {[%emt 0:00:17]} Kf3 {[%emt 0:00:04]} 46. Kh3 {[%emt 0:00:02]} Re8 {[%emt 0:00:06]} 47. h5 {[%emt 0:00:09]} Rg8 {[%emt 0:00:04]} 48. Rf7+ {[%emt 0:00:03]} 1-0

[Event "European Online Club-ch-G 2021"]
[Site "Online"]
[Date "2021.03.27"]
[Round "7.13"]
[White "Sevdimaliyev, Urfan"]
[Black "Grachev, Boris"]
[Result "0-1"]
[ECO "D03"]
[WhiteElo "2369"]
[BlackElo "2619"]
[Annotator "ChessBase"]
[PlyCount "86"]
[EventDate "2021.03.27"]
[EventType "team-tourn"]
[EventCountry "NET"]
[SourceTitle "playchess.com"]
[Source "ChessBase"]
[SourceQuality "1"]
[TimeControl "900+5"]

1. d4 {[%emt 0:00:00]} d5 {[%emt 0:00:04]} 2. Nf3 {[%emt 0:00:05]} Nf6 {[%emt 0:00:05]} 3. Bg5 {[%emt 0:00:07]} c6 {[%emt 0:01:03]} 4. e3 {[%emt 0:00:23]} Bf5 {[%emt 0:00:16]} 5. c4 {[%emt 0:01:00]} Ne4 {[%emt 0:00:40]} 6. Bf4 {[%emt 0:00:13]} e6 {[%emt 0:00:26]} 7. Nc3 {[%emt 0:01:14]} Qb6 {[%emt 0:01:32]} 8. Qb3 {[%emt 0:00:35]} Qxb3 {[%emt 0:00:10]} 9. axb3 {[%emt 0:00:03]} Bb4 {[%emt 0:00:02]} 10. Rc1 {[%emt 0:00:14]} Nd7 {[%emt 0:00:14]} 11. Nd2 {[%emt 0:03:59]} Nxc3 {[%emt 0:01:22]} 12. bxc3 {[%emt 0:00:03]} Ba3 {[%emt 0:00:01]} 13. Rd1 {[%emt 0:00:15]} Bb2 {[%emt 0:00:09]} 14. Nb1 {[%emt 0:00:12]} Bxb1 {[%emt 0:01:26]} 15. Rxb1 {[%emt 0:00:04]} Bxc3+ {[%emt 0:00:02]} 16. Kd1 {[%emt 0:00:04]} e5 {[%emt 0:00:12]} 17. dxe5 {[%emt 0:00:14]} Bxe5 {[%emt 0:00:03]} 18. cxd5 {[%emt 0:01:06]} cxd5 {[%emt 0:00:03]} 19. Bxe5 {[%emt 0:00:32]} Nxe5 {[%emt 0:00:02]} 20. Bb5+ {[%emt 0:00:03]} Ke7 {[%emt 0:00:03]} 21. Ke2 {[%emt 0:00:08]} Rhc8 {[%emt 0:00:28]} 22. Rhc1 {[%emt 0:00:16]} a6 {[%emt 0:00:23]} 23. Bd3 {[%emt 0:00:03]} Nxd3 {[%emt 0:00:23]} 24. Kxd3 {[%emt 0:00:03]} Kd6 {[%emt 0:00:02]} 25. Kd4 {[%emt 0:00:04]} Rc6 {[%emt 0:00:02]} 26. b4 {[%emt 0:00:49]} Rxc1 {[%emt 0:01:57]} 27. Rxc1 {[%emt 0:00:04]} b6 {[%emt 0:00:02]} 28. Rc3 {[%emt 0:00:30]} h5 {[%emt 0:00:13]} 29. h4 {[%emt 0:00:13]} f6 {[%emt 0:00:07]} 30. Rc1 {[%emt 0:00:12]} g5 {[%emt 0:00:23]} 31. g3 {[%emt 0:00:54]} g4 {[%emt 0:00:24]} 32. e4 {[%emt 0:00:32]} dxe4 {[%emt 0:00:32]} 33. Kxe4 {[%emt 0:00:03]} a5 {[%emt 0:00:30]} 34. b5 {[%emt 0:00:15]} a4 {[%emt 0:00:57]} 35. Rc6+ {[%emt 0:01:15]} Kd7 {[%emt 0:00:03]} 36. Kd5 {[%emt 0:00:09]} a3 {[%emt 0:00:17]} 37. Rd6+ {[%emt 0:00:19]} Ke7 {[%emt 0:00:36]} 38. Re6+ {[%emt 0:00:03]} Kf7 {[%emt 0:00:02]} 39. Re1 {[%emt 0:00:06]} Rc8 {[%emt 0:00:23]} 40. Ra1 {[%emt 0:00:23]} Rc5+ {[%emt 0:00:25]} 41. Kd4 {[%emt 0:00:09]} Rxb5 {[%emt 0:00:07]} 42. Rxa3 {[%emt 0:00:06]} Rf5 {[%emt 0:00:15]} 43. Ke3 {[%emt 0:00:09]} Rf3+ {[%emt 0:00:03]} 0-1

[Event "European Online Club-ch-G 2021"]
[Site "Online"]
[Date "2021.03.27"]
[Round "7.14"]
[White "Motylev, Alexander"]
[Black "Babayev, Talib"]
[Result "1-0"]
[ECO "B12"]
[WhiteElo "2641"]
[BlackElo "2282"]
[Annotator "ChessBase"]
[PlyCount "63"]
[EventDate "2021.03.27"]
[EventType "team-tourn"]
[EventCountry "NET"]
[SourceTitle "playchess.com"]
[Source "ChessBase"]
[SourceQuality "1"]
[TimeControl "900+5"]

1. e4 {[%emt 0:00:00]} c6 {[%emt 0:00:04]} 2. d4 {[%emt 0:00:09]} d5 {[%emt 0:00:04]} 3. e5 {[%emt 0:00:01]} Bf5 {[%emt 0:00:04]} 4. h4 {[%emt 0:00:03]} h5 {[%emt 0:00:03]} 5. Bd3 {[%emt 0:00:01]} Bxd3 {[%emt 0:00:03]} 6. Qxd3 {[%emt 0:00:02]} e6 {[%emt 0:00:02]} 7. Bg5 {[%emt 0:00:02]} Be7 {[%emt 0:00:01]} 8. Nf3 {[%emt 0:00:04]} Bxg5 {[%emt 0:00:13]} 9. hxg5 {[%emt 0:00:17]} Ne7 {[%emt 0:00:02]} 10. Nc3 {[%emt 0:00:06]} g6 {[%emt 0:00:22]} 11. g4 {[%emt 0:00:12]} Qb6 {[%emt 0:00:11]} 12. O-O-O {[%emt 0:00:22]} Nd7 {[%emt 0:00:06]} 13. gxh5 {[%emt 0:00:05]} gxh5 {[%emt 0:00:02]} 14. Nh4 {[%emt 0:00:08]} O-O-O {[%emt 0:00:04]} 15. f4 {[%emt 0:01:00]} Rdg8 {[%emt 0:00:19]} 16. Kb1 {[%emt 0:00:18]} c5 {[%emt 0:00:15]} 17. Nb5 {[%emt 0:01:09]} c4 {[%emt 0:00:37]} 18. Qa3 {[%emt 0:00:04]} Qxb5 {[%emt 0:00:34]} 19. Qxe7 {[%emt 0:00:03]} Re8 {[%emt 0:00:14]} 20. Qd6 {[%emt 0:00:29]} Nb6 {[%emt 0:00:12]} 21. Rh3 {[%emt 0:00:41]} Rd8 {[%emt 0:00:11]} 22. Qa3 {[%emt 0:00:04]} Rd7 {[%emt 0:00:31]} 23. f5 {[%emt 0:01:54]} Kb8 {[%emt 0:01:05]} 24. g6 {[%emt 0:00:22]} exf5 {[%emt 0:00:22]} 25. g7 {[%emt 0:00:31]} Rg8 {[%emt 0:00:02]} 26. Nxf5 {[%emt 0:00:04]} Rdd8 {[%emt 0:00:25]} 27. Rxh5 {[%emt 0:01:12]} Na4 {[%emt 0:00:25]} 28. c3 {[%emt 0:01:19]} Qa6 {[%emt 0:01:01]} 29. Rh6 {[%emt 0:00:22]} b6 {[%emt 0:00:24]} 30. Rf1 {[%emt 0:00:19]} Qb5 {[%emt 0:00:11]} 31. Rf6 {[%emt 0:00:36]} Qe8 {[%emt 0:00:11]} 32. Nd6 {[%emt 0:00:11]} 1-0